bitfinex/quotes_ETHUSD_20241216
["timestamp","ask_amount","ask_price","bid_price","bid_amount"]
[1734390434806,0.12411941,4022.5,4020.8,1.02650392]
[1734390435057,0.03108207,4022.4,4020.8,4.14517817]
[1734390435262,0.12411941,4022.4,4020.8,1.14517817]
[1734390435421,0.12411941,4022.5,4020.8,1.14517817]
[1734390435611,0.12411941,4022.5,4020.9,1.72032442]
[1734390435811,0.12411941,4022.7,4020.9,1.72032442]
[1734390436035,0.12411941,4022.6,4021.0,1.02650392]
[1734390436242,0.12411941,4022.8,4021.0,1.02650392]
[1734390436438,1.02364735,4022.9,4021.0,1.02650392]
[1734390436439,0.97737622,4022.7,4021.0,1.02650392]
[1734390436749,0.15520145,4022.6,4021.1,0.63898136]
[1734390436911,0.12411941,4022.6,4021.1,0.63898136]
[1734390437828,0.03108204,4022.6,4021.1,0.63898136]
[1734390438051,0.12412089,4022.6,4021.1,0.63898136]
[1734390439926,0.12412089,4022.6,4020.9,3.6938205]
[1734390439927,0.88464502,4022.5,4020.9,1.02650392]
[1734390440128,1.02364735,4022.3,4020.5,1.02650392]
[1734390440341,1.02364735,4022.3,4020.1,2.16165213]
[1734390440342,3.31260969,4022.2,4020.4,1.02650392]
[1734390440539,3.28152387,4022.1,4020.3,1.02650392]
[1734390440853,1.00873203,4022.0,4020.3,1.02650392]
[1734390441055,1.18099774,4021.9,4020.3,1.5294717]
[1734390441217,0.03108757,4021.8,4020.3,1.5294717]
[1734390441420,0.03108757,4021.8,4020.3,1.6512]
[1734390442517,0.15523145,4021.8,4020.3,1.6512]
[1734390442856,0.12414388,4021.8,4020.3,1.6512]
[1734390443158,0.16930166,4021.7,4020.3,0.62469608]
[1734390443521,0.13821167,4021.7,4020.3,0.62469608]
[1734390443769,0.13821167,4021.7,4020.3,1.6512]
[1734390443770,0.23053831,4021.6,4020.3,1.6512]
[1734390443923,0.23053831,4021.5,4020.3,1.6512]
[1734390444126,0.13821167,4021.7,4020.3,1.6512]
[1734390444369,0.23052716,4021.6,4020.4,0.62020149]
[1734390444521,0.13821167,4021.7,4021.0,3.0]
[1734390444522,0.23052716,4021.5,4021.0,3.0]
[1734390444716,0.23052716,4021.5,4020.4,0.62020149]
[1734390444717,0.13821167,4021.7,4020.4,0.62020149]
[1734390444954,0.23052834,4021.6,4020.4,0.62020149]
[1734390445228,0.23052834,4021.5,4020.4,0.62020149]
[1734390445424,0.26160346,4021.4,4020.3,0.1217283]
[1734390445729,0.03108844,4021.4,4020.2,1.02650392]
[1734390446042,0.03108844,4021.4,4019.5,1.11080682]
[1734390446043,1.08426955,4021.3,4019.8,1.02650392]
[1734390446242,0.26159101,4021.2,4019.7,1.14569261]
[1734390446424,0.37143615,4021.1,4019.7,0.29872143]
[1734390446620,0.26159161,4021.0,4019.7,0.29872143]
[1734390446822,0.23049793,4020.9,4019.7,0.29872143]
[1734390447033,0.03109368,4021.0,4019.7,0.29872143]
[1734390447034,0.03109367,4020.8,4019.7,0.29872143]
[1734390447418,0.03109367,4021.0,4019.7,0.29872143]
[1734390447616,0.23038745,4020.9,4019.7,0.29872143]
[1734390447841,0.14093822,4021.1,4019.8,0.44457211]
[1734390448029,0.23038765,4021.0,4019.8,0.44457211]
[1734390448231,0.14093822,4021.1,4020.2,3.0]
[1734390448436,0.2303558,4021.0,4020.2,3.0]
[1734390448642,0.14093822,4021.1,4019.8,0.44457211]
[1734390448846,0.23036048,4021.0,4019.8,0.44457211]
[1734390449040,0.14093822,4021.1,4019.8,0.44457211]
[1734390449332,0.23040659,4021.0,4019.8,0.44457211]
[1734390449550,0.17203187,4021.1,4019.8,0.44457211]
[1734390449830,0.23036999,4021.0,4019.8,0.44457211]
[1734390450030,0.17203187,4021.1,4019.8,0.44457211]
[1734390450230,0.17203187,4021.1,4019.9,0.18902932]
[1734390450231,0.23037052,4021.0,4019.9,0.18902932]
[1734390450448,0.26146415,4020.9,4020.2,3.0]
[1734390450742,0.03109363,4020.9,4020.2,3.0]
[1734390451358,0.03109327,4021.0,4020.2,3.0]
[1734390451562,0.23031485,4020.9,4019.8,0.44457211]
[1734390451743,0.03109361,4020.8,4019.7,0.29872143]
[1734390452665,0.0310936,4021.0,4019.7,0.29872143]
[1734390453959,1.70669644,4022.6,4019.7,0.58942825]
[1734390453960,1.02364735,4021.5,4019.7,0.58942825]
[1734390454254,0.2302251,4021.4,4019.8,0.29070682]
[1734390454458,0.2302251,4021.3,4019.7,1.85130392]
[1734390454658,0.03109157,4021.4,4019.8,0.65226146]
[1734390454659,0.2302251,4021.2,4019.8,0.65226146]
[1734390454963,0.23020606,4021.1,4019.8,0.65226146]
[1734390455168,0.03109157,4021.4,4019.8,0.65226146]
[1734390455354,0.23018706,4021.3,4019.8,0.65226146]
[1734390455553,0.23018706,4021.2,4019.9,0.17992612]
[1734390455729,1.02364735,4021.6,4019.9,0.17992612]
[1734390455929,0.23018634,4021.5,4019.9,0.17992612]
[1734390456167,2.30324939,4021.6,4019.9,0.17992612]
[1734390456168,1.11434592,4021.4,4019.9,0.17992612]
[1734390456338,1.08321689,4021.3,4019.6,0.12049577]
[1734390456544,0.2612779,4021.2,4019.5,1.02650392]
[1734390456732,0.23018634,4021.1,4019.5,1.02650392]
[1734390456937,0.03109156,4021.4,4019.5,1.14690349]
[1734390457133,1.08323032,4021.3,4019.5,1.14690349]
[1734390457341,0.21379692,4021.2,4019.6,0.58246923]
[1734390457843,0.03109156,4021.4,4019.6,0.58246923]
[1734390457844,0.23014608,4021.1,4019.6,0.58246923]
[1734390458033,0.03109156,4021.4,4019.6,0.58246923]
[1734390458234,0.23015106,4021.3,4019.6,0.58246923]
[1734390458471,0.23015106,4021.2,4019.6,0.58246923]
[1734390458775,0.23015106,4021.1,4019.6,0.58246923]
[1734390458978,0.03109156,4021.4,4019.7,0.48563466]
[1734390459146,1.08314056,4021.3,4019.7,0.48563466]
[1734390459330,0.23013499,4021.2,4019.7,0.48563466]
[1734390459536,0.23013499,4021.1,4019.7,0.48563466]
[1734390459869,0.03109152,4021.0,4019.7,0.48563466]
[1734390460166,0.03109152,4021.0,4019.8,0.16325381]
[1734390460367,0.03109152,4021.0,4019.5,0.12039957]
[1734390460669,0.03109152,4021.0,4019.5,0.55]
[1734390460888,0.23018486,4020.9,4019.1,1.02650392]
[1734390461036,0.26128184,4020.8,4019.2,0.1192023]
[1734390461231,0.35867778,4020.7,4018.7,1.02650392]
[1734390461538,0.23018486,4020.6,4018.9,1.85130392]
[1734390461861,0.12849292,4020.7,4019.1,1.02650392]
[1734390462064,1.02364735,4021.2,4019.1,1.02650392]
[1734390462367,0.23016678,4021.1,4019.1,0.55]
[1734390462549,0.23016678,4021.0,4019.1,1.86721074]
[1734390462731,0.03109315,4021.4,4019.3,1.02650392]
[1734390462932,1.02364735,4021.5,4019.3,1.02650392]
[1734390462933,1.08324148,4021.3,4019.4,0.55]
[1734390463134,0.23020002,4021.2,4019.5,0.64180257]
[1734390463334,0.23020002,4021.1,4019.5,0.64180257]
[1734390463532,1.05473889,4021.5,4019.5,0.64180257]
[1734390463733,1.05473889,4021.5,4019.5,1.66830649]
[1734390463734,0.23024976,4021.4,4019.5,1.66830649]
[1734390463968,0.23024976,4021.3,4019.5,1.66830649]
[1734390464136,0.23024976,4021.2,4019.6,0.67691214]
[1734390464335,0.23024976,4021.1,4019.6,0.67691214]
[1734390464544,0.03109152,4021.5,4019.6,0.67691214]
[1734390464749,1.08332547,4021.4,4019.6,0.67691214]
[1734390464954,0.26139786,4021.3,4019.6,0.67691214]
[1734390465172,0.23030635,4021.2,4019.7,0.22534161]
[1734390465375,0.23030635,4021.1,4019.7,0.22534161]
[1734390465571,0.03109151,4021.3,4019.7,0.22534161]
[1734390465871,0.23035269,4021.2,4019.7,0.22534161]
[1734390466071,0.12416591,4021.7,4019.8,0.84070682]
[1734390466274,0.23033274,4021.6,4020.0,4.57650392]
[1734390466479,0.12416591,4022.2,4020.3,1.57650392]
[1734390466676,0.20010236,4022.7,4020.3,1.57650392]
[1734390466677,0.23039369,4022.1,4020.3,1.57650392]
[1734390466875,1.73557339,4022.7,4020.3,4.57650392]
[1734390466876,0.23039155,4022.0,4020.3,4.57650392]
[1734390467041,0.23039155,4021.9,4020.5,0.55]
[1734390467237,0.23039155,4021.8,4020.5,0.55]
[1734390467539,0.03108369,4022.2,4020.5,0.55]
[1734390467540,0.23039155,4021.7,4020.5,0.55]
[1734390467745,0.23039155,4021.6,4020.5,0.55]
[1734390468073,1.05473104,4022.2,4020.4,0.72428257]
[1734390468280,2.62164342,4022.1,4020.4,0.72428257]
[1734390468578,0.26151983,4022.0,4020.4,0.72428257]
[1734390468877,0.23043361,4021.9,4020.4,0.72428257]
[1734390469077,0.26151983,4021.8,4020.4,0.72428257]
[1734390469250,0.23043361,4021.7,4020.3,0.11919415]
[1734390469440,0.26152229,4021.6,4020.1,0.8248]
[1734390469640,1.02364735,4021.9,4020.1,0.8248]
[1734390469641,0.23043361,4021.5,4020.1,0.8248]
[1734390469845,0.23043361,4021.4,4020.1,0.8248]
[1734390470075,1.02364735,4022.0,4020.1,1.11550682]
[1734390470276,0.23061968,4021.3,4020.2,0.57189572]
[1734390470571,0.28181386,4021.9,4020.2,0.57189572]
[1734390470775,0.23063563,4021.8,4020.5,3.0]
[1734390470975,0.28181386,4021.9,4020.2,3.57189572]
[1734390470976,0.23063563,4021.7,4020.2,3.57189572]
[1734390471156,1.53547103,4022.5,4020.2,3.57189572]
[1734390471157,1.02364735,4022.9,4020.7,1.85130392]
[1734390471368,0.23058804,4022.8,4021.0,0.55]
[1734390471574,0.23058804,4022.7,4021.1,0.8248]
[1734390471782,1.02364735,4023.4,4021.2,1.57650392]
[1734390472022,0.26169924,4023.3,4021.2,1.02650392]
[1734390472332,1.02364735,4023.1,4020.9,1.02650392]
[1734390472629,0.23062126,4023.2,4020.7,2.37561492]
[1734390472630,1.02364735,4022.9,4020.7,1.02650392]
[1734390472761,1.02364735,4022.9,4020.4,0.8248]
[1734390472762,1.02364735,4022.6,4020.4,4.85130392]
[1734390472959,1.02364735,4022.6,4020.2,2.41341746]
[1734390472960,1.02364735,4022.4,4020.2,1.88910646]
[1734390473179,0.44606914,4022.5,4020.2,0.57189572]
[1734390473180,3.60208417,4022.3,4020.2,0.57189572]
[1734390473398,3.57099807,4022.2,4020.2,0.57189572]
[1734390473695,1.81277196,4022.1,4020.1,1.97615536]
[1734390473862,0.41498344,4022.0,4020.1,1.97615536]
[1734390474062,0.44606951,4021.9,4020.1,1.97615536]
[1734390474281,0.41498344,4021.8,4020.2,0.55]
[1734390474487,0.44606952,4021.7,4020.1,0.94965144]
[1734390474800,0.41498344,4021.6,4020.1,0.12485144]
[1734390475119,2.04729471,4022.5,4020.2,0.41513554]
[1734390475120,0.44607196,4021.5,4020.2,0.41513554]
[1734390475302,0.41498344,4021.4,4019.9,1.02650392]
[1734390475483,0.2154507,4021.3,4019.9,1.02650392]
[1734390475669,0.2154507,4021.3,4019.7,1.02650392]
[1734390475670,0.41478296,4021.2,4019.7,1.02650392]
[1734390475864,0.215453,4021.1,4019.7,1.02650392]
[1734390476167,0.18436218,4021.0,4019.6,1.14865315]
[1734390476405,0.18436218,4020.9,4019.7,1.67893073]
[1734390476599,0.18433422,4020.8,4019.7,1.67893073]
[1734390476778,1.05473868,4021.8,4019.7,0.65242681]
[1734390477101,1.26740513,4021.7,4019.7,1.67893073]
[1734390477277,0.44584508,4021.6,4019.7,1.67893073]
[1734390477596,0.44584508,4021.6,4019.8,0.63518949]
[1734390477597,0.56170352,4021.5,4019.8,0.63518949]
[1734390477805,0.56170352,4021.5,4019.9,0.29070682]
[1734390477806,0.41475428,4021.4,4019.9,0.29070682]
[1734390477984,0.41476838,4021.3,4020.0,0.8248]
[1734390478180,0.18433522,4021.2,4020.0,0.8248]
[1734390478502,2.04729471,4022.4,4020.0,0.8248]
[1734390478503,0.18433522,4021.1,4020.0,0.8248]
[1734390478806,0.18433522,4021.0,4020.1,0.24864934]
[1734390479002,0.18433522,4020.9,4020.1,0.24864934]
[1734390479168,0.03108923,4021.8,4020.1,0.24864934]
[1734390479369,1.26778398,4021.7,4019.8,1.66169341]
[1734390479607,0.41478626,4021.6,4019.9,1.02650392]
[1734390479827,0.03108923,4021.8,4019.9,1.02650392]
[1734390480002,0.41479078,4021.7,4019.8,1.66169341]
[1734390480302,1.29887991,4021.6,4019.8,1.66169341]
[1734390480611,0.64704351,4021.5,4019.8,1.66169341]
[1734390480931,0.44588223,4021.4,4019.8,0.63518949]
[1734390481087,0.41479078,4021.3,4019.8,0.63518949]
[1734390481290,0.23225273,4021.5,4019.8,0.63518949]
[1734390481291,0.44588222,4021.2,4019.8,0.63518949]
[1734390481512,0.41479078,4021.1,4019.8,0.63518949]
[1734390481811,0.18435,4021.0,4019.9,0.49104111]
[1734390482011,0.18435,4020.9,4019.9,0.49104111]
[1734390482320,0.18433836,4020.8,4019.9,0.49104111]
[1734390482534,0.18433836,4020.7,4019.9,0.49104111]
[1734390482669,0.18433836,4020.6,4019.6,1.02650392]
[1734390482872,0.18433836,4020.5,4019.4,1.02650392]
[1734390483226,0.18433836,4020.4,4019.5,0.57016968]
[1734390483425,1.02364735,4021.1,4019.3,1.02650392]
[1734390483738,1.02364735,4021.1,4018.9,1.02650392]
[1734390483739,1.02364735,4020.8,4018.9,1.02650392]
[1734390483873,3.0,4020.9,4018.5,1.03150392]
[1734390483874,1.02364735,4020.4,4018.5,1.03150392]
[1734390484074,3.89750203,4020.3,4018.5,0.005]
[1734390484274,1.56273737,4020.2,4018.5,0.005]
[1734390484531,1.0024085,4020.1,4018.6,0.18275039]
[1734390484668,0.23038801,4020.0,4018.6,0.18275039]
[1734390484873,0.77202049,4020.1,4018.6,0.18275039]
[1734390484874,0.74066002,4019.9,4018.6,0.18275039]
[1734390485070,0.18431851,4019.8,4018.6,0.18275039]
[1734390485326,0.21541949,4019.7,4018.6,0.18275039]
[1734390485537,0.18416327,4019.6,4018.6,0.18275039]
[1734390485679,0.26174847,4020.1,4018.6,0.18275039]
[1734390485680,0.21526449,4019.5,4018.6,0.18275039]
[1734390485877,0.03110122,4019.5,4018.8,3.0]
[1734390486073,0.18408401,4019.4,4018.5,0.005]
[1734390486292,0.29466124,4019.8,4018.5,0.005]
[1734390486490,0.21508927,4019.7,4018.5,0.005]
[1734390486727,0.18398524,4019.6,4018.5,0.005]
[1734390487032,0.18398524,4019.5,4018.5,0.005]
[1734390487177,0.18398524,4019.4,4018.5,0.005]
[1734390487384,0.03110407,4019.8,4018.5,0.005]
[1734390488257,1.02364735,4019.0,4018.5,0.005]
[1734390488537,1.02364735,4019.0,4018.4,0.00412539]
[1734390488538,1.39261,4018.9,4018.4,0.00412539]
[1734390488839,0.22948301,4018.8,4018.4,0.00412539]
[1734390489042,0.03111076,4018.7,4018.4,0.00412539]
[1734390489243,0.26059377,4018.7,4018.4,0.00412539]
[1734390489407,0.03111076,4018.7,4018.4,0.00412539]
[1734390489604,0.22921657,4018.6,4018.4,0.00412539]
[1734390489808,0.28043129,4018.9,4018.4,0.00412539]
[1734390490023,0.35962883,4018.8,4018.4,0.00412539]
[1734390490371,0.03111253,4018.8,4018.4,0.00412539]
[1734390492046,0.03111253,4018.8,4017.3,0.1660955]
[1734390492047,0.55,4018.4,4017.3,0.1660955]
[1734390492207,0.9,4018.0,4017.3,0.1660955]
[1734390492407,1.57708228,4017.7,4017.3,0.1660955]
[1734390492604,1.10804253,4017.6,4017.3,0.1660955]
[1734390492809,1.37174722,4017.5,4017.3,0.1660955]
[1734390493010,0.80995437,4017.4,4017.3,0.1660955]
[1734390494214,0.25995437,4017.4,4017.3,0.1660955]
[1734390494448,0.03112617,4017.4,4017.3,0.1660955]
[1734390494653,0.03112507,4017.9,4017.3,0.1660955]
[1734390495128,0.55,4017.7,4017.3,0.1660955]
[1734390495336,0.03112369,4017.6,4017.3,0.1660955]
[1734390496159,0.5279492,4018.4,4017.3,0.1660955]
[1734390496160,0.03112375,4017.5,4017.3,0.1660955]
[1734390496356,0.03112298,4018.2,4017.3,0.1660955]
[1734390496561,0.55,4018.0,4017.3,0.1660955]
[1734390496879,0.03112286,4017.9,4017.3,0.1660955]
[1734390502130,0.55,4017.7,4017.3,0.1660955]
[1734390502354,0.0311246,4017.6,4017.3,0.1660955]
[1734390503203,0.03112445,4017.9,4017.3,0.1660955]
[1734390503375,0.22748825,4017.8,4017.3,0.1660955]
[1734390503704,0.24258891,4018.1,4017.3,0.1660955]
[1734390503705,0.55,4017.6,4017.3,0.1660955]
[1734390503892,0.03112394,4017.5,4017.3,0.1660955]
[1734390505729,0.22770296,4017.4,4017.3,0.1660955]
[1734390505871,0.03112394,4017.5,4017.3,0.1660955]
[1734390506555,0.24279025,4018.0,4017.3,0.1660955]
[1734390506826,0.77780248,4017.9,4017.3,0.1660955]
[1734390507001,0.22780248,4017.8,4017.3,0.1660955]
[1734390508014,0.22793381,4017.7,4017.3,0.1660955]
[1734390508189,0.03112217,4017.8,4017.3,0.1660955]
[1734390508365,0.22808023,4017.7,4017.3,0.1660955]
[1734390508569,0.25920194,4017.6,4017.3,0.1660955]
[1734390508870,0.22810654,4017.5,4017.3,0.1660955]
[1734390509095,0.03112197,4017.4,4017.3,0.1660955]
[1734390509453,0.22832177,4017.4,4017.3,0.1660955]
[1734390509592,0.22832243,4017.4,4017.3,0.1660955]
[1734390510057,0.24279025,4017.7,4017.3,0.1660955]
[1734390510245,0.22832526,4017.6,4017.3,0.1660955]
[1734390510397,0.22832526,4017.5,4017.3,0.1660955]
[1734390510707,0.03112183,4017.4,4017.3,0.1660955]
[1734390510918,0.25944709,4017.4,4015.9,0.005]
[1734390511106,0.24354753,4017.2,4015.9,0.005]
[1734390511428,0.24354753,4017.0,4015.9,0.005]
[1734390511650,0.25945058,4016.9,4015.9,0.005]
[1734390511864,0.03112532,4016.9,4015.9,0.005]
[1734390512542,0.22881283,4016.8,4015.9,0.005]
[1734390512734,0.24354753,4017.0,4015.9,0.005]
[1734390513032,0.88964638,4018.5,4016.1,3.0]
[1734390513033,0.24354753,4017.3,4016.1,3.0]
[1734390513244,0.24354753,4017.1,4016.0,0.767]
[1734390513403,0.50349873,4017.0,4016.1,3.0]
[1734390513604,0.47237569,4016.9,4016.1,3.0]
[1734390513853,0.22882816,4016.8,4016.1,3.0]
[1734390514099,0.24354753,4017.0,4016.1,3.0]
[1734390514219,0.58112302,4018.6,4016.1,3.0]
[1734390514560,0.55,4018.4,4016.0,0.767]
[1734390514767,0.55,4018.4,4016.1,3.0]
[1734390514768,0.24458311,4017.0,4016.1,3.0]
[1734390514908,0.24458311,4016.9,4016.1,3.0]
[1734390515215,0.22927233,4016.8,4016.0,0.767]
[1734390515417,0.24458311,4016.9,4016.1,3.0]
[1734390515418,0.22927233,4016.7,4016.1,3.0]
[1734390515616,0.22951578,4016.6,4016.1,3.0]
[1734390515817,0.24458311,4016.9,4016.2,0.3772]
[1734390516017,0.22952401,4016.8,4016.0,0.767]
[1734390516222,0.22952401,4016.7,4016.0,0.767]
[1734390516408,0.22952401,4016.6,4016.1,3.0]
[1734390516611,0.22952401,4016.5,4016.0,0.767]
[1734390516807,0.24458311,4016.7,4016.1,3.0]
[1734390517016,0.22976576,4016.6,4016.1,3.0]
[1734390517214,0.22976576,4016.5,4016.0,0.767]
[1734390517413,0.22976576,4016.4,4016.1,3.0]
[1734390517622,0.24458311,4016.5,4016.1,3.0]
[1734390517623,0.22976576,4016.3,4016.1,3.0]
[1734390517867,0.24458311,4016.5,4016.0,0.767]
[1734390518051,0.23009649,4016.4,4016.1,3.0]
[1734390518221,0.23009649,4016.3,4016.1,3.0]
[1734390518428,0.23009649,4016.2,4016.1,3.0]
[1734390518635,0.23009649,4016.2,4016.0,0.767]
[1734390518826,0.24458311,4016.5,4016.1,3.0]
[1734390519027,0.23019144,4016.4,4016.1,3.0]
[1734390519325,0.47477455,4016.3,4016.1,3.0]
[1734390519535,0.47477455,4016.2,4016.0,0.767]
[1734390519739,0.23027976,4016.1,4016.0,0.767]
[1734390520624,0.24458311,4016.2,4016.1,3.0]
[1734390520825,0.47504258,4016.2,4016.1,3.0]
[1734390521025,0.23045947,4016.2,4016.0,0.767]
[1734390521230,0.24582651,4016.1,4016.0,0.767]
[1734390521425,0.23046279,4016.1,4016.0,0.767]
[1734390521638,0.47655816,4016.1,4016.0,0.767]
[1734390523464,0.23046279,4016.1,4016.0,0.767]
[1734390524275,0.03112301,4018.3,4016.0,0.767]
[1734390524446,0.24614824,4016.3,4016.0,0.767]
[1734390524629,0.23076404,4016.2,4016.0,0.767]
[1734390524835,0.24614824,4016.4,4016.0,0.767]
[1734390525033,0.2307684,4016.3,4016.0,0.767]
[1734390525228,0.2307684,4016.2,4016.0,0.767]
[1734390525467,0.24614824,4016.4,4016.0,0.767]
[1734390525629,0.03111913,4018.1,4016.0,0.767]
[1734390525630,0.24613254,4016.5,4016.0,0.767]
[1734390525844,0.23075067,4016.4,4016.0,0.767]
[1734390526044,0.23075067,4016.3,4016.0,0.767]
[1734390526267,0.24613254,4016.6,4016.0,0.767]
[1734390526571,0.23073147,4016.5,4016.4,3.0]
[1734390526879,0.47686401,4016.5,4016.4,3.0]
[1734390527032,0.24613254,4016.6,4016.5,3.0]
[1734390527237,0.23074574,4016.6,4016.5,3.0]
[1734390527432,0.35502218,4016.6,4016.5,3.0]
[1734390527752,0.23074574,4016.6,4016.5,3.0]
[1734390528568,0.23074574,4016.6,4016.5,0.39193945]
[1734390528765,0.24613254,4017.2,4016.8,3.0]
[1734390528966,0.23067539,4017.1,4016.8,3.0]
[1734390529267,0.23067539,4017.0,4016.8,3.0]
[1734390529467,0.23067539,4016.9,4016.4,0.7992]
[1734390529767,31.32592854,4017.3,4016.8,3.0]
[1734390529966,31.32592854,4017.3,4016.4,0.7992]
[1734390529967,0.23061424,4017.2,4016.4,0.7992]
[1734390530132,31.32592854,4017.3,4016.4,0.7992]
[1734390530133,0.23061424,4017.1,4016.4,0.7992]
[1734390530329,0.23060657,4017.0,4016.8,3.0]
[1734390530554,0.23060657,4016.9,4016.4,0.7992]
[1734390530728,2.55613921,4017.0,4016.4,0.7992]
[1734390530932,0.23054832,4016.9,4016.4,0.7992]
[1734390531168,0.23054832,4016.8,4016.4,0.7992]
[1734390531468,2.55613921,4017.0,4016.4,0.7992]
[1734390531469,0.23054832,4016.7,4016.4,0.7992]
[1734390531856,0.23054832,4016.6,4016.4,0.7992]
[1734390532156,0.24598034,4017.1,4016.4,0.7992]
[1734390532157,0.23053885,4016.5,4016.4,0.7992]
[1734390532362,0.27709968,4017.2,4016.4,3.0]
[1734390532668,0.24598034,4017.0,4016.4,3.0]
[1734390532841,0.23052637,4016.9,4016.0,0.7992]
[1734390533051,0.23052637,4016.8,4016.4,3.0]
[1734390533389,0.23052637,4016.7,4016.2,3.0]
[1734390533695,0.23052637,4016.7,4016.0,0.7992]
[1734390533696,0.24587954,4016.9,4016.0,0.7992]
[1734390533871,0.3829101,4016.8,4016.0,0.7992]
[1734390534036,0.61342343,4016.8,4016.0,0.7992]
[1734390534243,0.23051333,4016.7,4016.0,0.7992]
[1734390534542,0.23051333,4016.6,4016.2,3.0]
[1734390534755,0.23051333,4016.5,4016.0,0.7992]
[1734390534955,0.23051333,4016.4,4016.0,0.7992]
[1734390535159,0.23051333,4016.3,4016.0,0.7992]
[1734390535358,0.3829101,4016.8,4016.2,3.0]
[1734390535559,0.39610648,4016.7,4016.0,0.7992]
[1734390535731,0.23051915,4016.6,4016.2,3.0]
[1734390535933,0.23051915,4016.5,4016.0,0.7992]
[1734390536131,0.23051915,4016.4,4016.0,0.7992]
[1734390536352,0.16558733,4016.7,4016.0,0.7992]
[1734390536557,0.23053054,4016.6,4016.0,0.7992]
[1734390536757,0.16558733,4016.7,4016.0,0.7992]
[1734390536974,0.23053024,4016.6,4016.0,0.7992]
[1734390537142,0.16558733,4016.7,4015.9,0.005]
[1734390537143,0.23053024,4016.5,4015.9,0.005]
[1734390537343,0.23053024,4016.4,4015.9,0.005]
[1734390537562,0.16558733,4016.7,4015.9,0.005]
[1734390537879,0.23052942,4016.6,4015.9,0.005]
[1734390538070,0.23052942,4016.5,4015.9,0.005]
[1734390538248,0.16558733,4016.7,4015.9,0.005]
[1734390538451,0.38808754,4016.6,4015.9,0.005]
[1734390538649,0.23052957,4016.5,4015.9,0.005]
[1734390538869,0.23052957,4016.4,4015.9,0.005]
[1734390539042,0.15755797,4016.6,4015.9,0.005]
[1734390539244,0.23052323,4016.5,4015.9,0.005]
[1734390539446,0.15755797,4016.6,4015.9,0.005]
[1734390539643,0.23051634,4016.5,4015.9,0.005]
[1734390539842,0.15755797,4016.6,4015.9,0.005]
[1734390540082,0.23051656,4016.5,4015.9,0.005]
[1734390540281,0.15755797,4016.6,4015.9,0.005]
[1734390540578,0.23050695,4016.5,4015.9,0.005]
[1734390540781,0.15755797,4016.6,4015.9,0.005]
[1734390540983,1.02708228,4016.9,4015.9,0.005]
[1734390541281,0.23051362,4016.8,4015.9,0.005]
[1734390541576,0.23051362,4016.7,4016.0,0.8104]
[1734390541783,3.58322149,4017.1,4016.0,0.8104]
[1734390541983,2.3660322,4017.0,4016.0,0.8104]
[1734390542180,0.23055081,4016.9,4016.1,1.21069431]
[1734390542355,31.079796,4017.3,4016.2,1.02650392]
[1734390542887,1.08482848,4017.2,4016.2,1.02650392]
[1734390543083,1.08482848,4017.2,4016.1,3.18419039]
[1734390543084,1.08477575,4017.1,4016.1,1.02650392]
[1734390543245,2.36606573,4017.0,4015.9,1.84190392]
[1734390543446,0.56990154,4016.9,4015.9,1.84190392]
[1734390543648,1.08474163,4016.8,4015.9,0.8154]
[1734390543893,0.23058674,4016.7,4015.9,0.8154]
[1734390544092,0.23058674,4016.6,4015.9,0.8154]
[1734390544260,1.02708228,4016.9,4015.9,0.8154]
[1734390544462,1.08474916,4016.8,4015.9,0.8154]
[1734390544674,0.23057438,4016.7,4015.9,0.8154]
[1734390544883,0.23057438,4016.6,4015.9,0.8154]
[1734390545047,0.49285646,4016.8,4015.9,0.005]
[1734390545048,0.59952004,4016.5,4015.9,0.005]
[1734390545253,0.23057438,4016.4,4015.9,0.005]
[1734390545562,0.23057438,4016.3,4015.9,0.005]
[1734390545761,0.23057438,4016.2,4015.9,0.005]
[1734390545962,0.36894462,4016.6,4015.9,0.005]
[1734390546276,1.4848463,4016.5,4015.9,0.005]
[1734390546478,3.76196349,4016.4,4015.9,0.005]
[1734390546679,2.76601023,4016.3,4015.9,0.005]
[1734390546885,1.45372246,4016.2,4015.9,0.005]
[1734390547064,0.59953501,4016.1,4015.9,0.005]
[1734390547261,1.0582113,4016.3,4015.9,0.005]
[1734390547262,0.76530964,4016.0,4015.9,0.005]
[1734390547484,0.59953501,4016.0,4015.9,0.005]
[1734390548460,0.59900347,4016.0,4015.9,0.005]
[1734390548663,2.51094475,4016.0,4015.9,0.005]
[1734390548892,2.76433222,4016.0,4015.9,0.005]
[1734390549163,3.79675403,4016.0,4015.9,0.005]
[1734390549375,3.36052688,4016.0,4015.1,0.005]
[1734390549586,3.76522676,4015.9,4015.1,0.005]
[1734390549763,2.76433399,4015.8,4015.1,0.005]
[1734390549969,1.45268247,4015.7,4015.1,0.005]
[1734390550166,0.63013649,4015.6,4015.1,0.005]
[1734390550395,0.24574501,4015.2,4013.9,0.7586]
[1734390550566,3.02863411,4015.1,4013.9,0.7586]
[1734390550771,0.59900347,4015.0,4013.9,0.7586]
[1734390551083,0.23038595,4014.9,4013.9,0.7586]
[1734390551286,0.23038595,4014.8,4013.9,0.7586]
[1734390551498,0.36861752,4015.2,4013.9,0.7586]
[1734390551664,0.27668987,4015.5,4013.9,0.7586]
[1734390551665,0.14005463,4015.1,4014.2,3.0]
[1734390551865,0.23001959,4015.0,4013.9,0.7586]
[1734390552068,0.23001959,4014.9,4013.9,0.7586]
[1734390552364,0.36803135,4015.3,4013.9,0.7586]
[1734390552365,0.23001959,4014.8,4013.9,0.7586]
[1734390552569,0.23001959,4014.7,4014.2,3.0]
[1734390552800,0.03113626,4015.2,4013.9,0.7586]
[1734390552965,0.22992871,4015.1,4014.2,3.0]
[1734390553167,0.22992871,4015.1,4013.9,0.7586]
[1734390553168,0.22992871,4015.0,4013.9,0.7586]
[1734390553505,0.22979384,4014.9,4013.9,0.7586]
[1734390553668,0.22979384,4014.8,4013.9,0.7586]
[1734390553865,0.03113626,4015.4,4013.9,0.7586]
[1734390554190,0.39743152,4015.3,4013.9,0.7586]
[1734390554502,0.36803135,4015.6,4013.9,0.7586]
[1734390554503,0.26092264,4015.2,4013.9,0.7586]
[1734390554822,0.22978639,4015.1,4013.9,0.7586]
[1734390555098,0.26092264,4015.0,4014.2,3.0]
[1734390555301,0.3991676,4015.6,4014.2,3.0]
[1734390555599,0.22960305,4015.5,4014.2,3.0]
[1734390555801,0.35886986,4015.4,4013.9,0.7586]
[1734390555976,0.22960305,4015.3,4013.9,0.7586]